fUST/lending_fUST_20240319
["ID","MTS","AMOUNT","RATE_DAILY","PERIOD"]
[319451593,1710778232554,-685.06399665,0.00018987,2]
[319451594,1710778232564,-35085.46677369,0.00018988,2]
[319451595,1710778232574,-3039.82829366,0.0001899,2]
[319451596,1710778232584,-168.767989,0.00019206,2]
[319451597,1710778232595,-1134.33031565,0.00019598,2]
[319451599,1710778232605,-35329.0583638,0.000199,2]
[319451601,1710778232615,-450.0123253,0.00019997,2]
[319451602,1710778232625,-3188.4423975,0.00019998,2]
[319451603,1710778232636,-204.89534336,0.00019998,2]
[319451604,1710778232645,-3795.13549134,0.00019998,2]
[319451605,1710778232656,-429.64123209,0.00019998,2]
[319451606,1710778232665,-290.80471979,0.00019998,2]
[319451607,1710778232675,-524.9782633,0.00019998,2]
[319451608,1710778232685,-156.11682561,0.00019998,2]
[319451609,1710778232694,-518.08197293,0.00019998,2]
[319451610,1710778232705,-155.16447434,0.00019998,2]
[319451611,1710778232715,-155.16447434,0.00019998,2]
[319451612,1710778232726,-155.53372428,0.00019998,2]
[319451613,1710778232736,-811.77716326,0.00019998,2]
[319451617,1710778238517,-1788.58250126,0.00019998,2]
[319451618,1710778238527,-500.0,0.00019999,2]
[319451619,1710778238536,-23.71610699,0.00019999,2]
[319451750,1710779097193,7547.6673834,0.00017667,2]
[319451751,1710779110684,430.18041621,0.0002,30]
[319451770,1710779432849,-941.15113558,0.00018017,2]
[319451771,1710779432863,-3556.6,0.00018017,2]
[319451804,1710779438725,-10267.62499435,0.00018017,2]
[319451805,1710779438789,-510.71560494,0.00018017,2]
[319451806,1710779438799,-405.00494432,0.00018018,2]
[319451807,1710779438808,-179.27131495,0.00018018,2]
[319451856,1710779440713,-2465.74508165,0.00018018,2]
[319451857,1710779440725,-580.29189922,0.00018018,2]
[319451858,1710779440735,-191.77351514,0.00018019,2]
[319451859,1710779440745,-155.00155002,0.00018019,2]
[319451860,1710779440754,-685.06399665,0.00018019,2]
[319451861,1710779440766,-301.8450875,0.0001802,2]
[319451862,1710779440775,-1234.34178093,0.0001805,2]
[319451863,1710779440785,-250.0,0.00018082,2]
[319451864,1710779440794,-696.4099745,0.0001834,2]
[319451865,1710779440803,-2031.64302346,0.00019,2]
[319451866,1710779440812,-478.11169,0.00019206,2]
[319451868,1710779440821,-465.299678,0.00019206,2]
[319451870,1710779440831,-478.11169,0.00019446,2]
[319451871,1710779440840,-465.299678,0.00019446,2]
[319451875,1710779440849,-478.11169,0.00019686,2]
[319451877,1710779440859,-465.299678,0.00019686,2]
[319451879,1710779440869,-500.0,0.00019726,2]
[319451880,1710779440878,-5164.94391209,0.00019798,2]
[319451882,1710779440887,-478.11169,0.00019926,2]
[319451884,1710779440896,-465.299678,0.00019926,2]
[319451886,1710779440905,-1000.0,0.00019936,2]
[319451888,1710779440914,-155.21737026,0.00019978,2]
[319451890,1710779440923,-31882.66191092,0.00019988,2]
[319451893,1710779440935,-1196.98257408,0.00019988,2]
[319451989,1710779446805,-812.04125896,0.00019988,2]
[319451991,1710779449847,3012.34035625,0.0002,30]
[319451992,1710779467199,1569.42932561,0.0002,30]
[319451993,1710779485196,1569.42932561,0.0002,30]
[319451994,1710779507202,1569.42932561,0.0002,30]
[319451995,1710779531210,1569.42932561,0.0002,30]
[319452005,1710780631885,-685.06399665,0.00018973,2]
[319452006,1710780631895,-589.15369106,0.00018974,2]
[319452009,1710780631904,-1016.0,0.00019,2]
[319452010,1710780631913,-1095.78231229,0.000198,2]
[319452108,1710780642906,-4880.16724902,0.000198,2]
[319452109,1710780642916,-151.122,0.00019887,2]
[319452110,1710780642926,-61579.93243953,0.00019988,2]
[319452111,1710780642935,-275.80733457,0.00019998,2]
[319452112,1710780642945,-269.39073036,0.00019998,2]
[319452113,1710780642954,-206.76302118,0.00019998,2]
[319452114,1710780642963,-187.27683737,0.00019998,2]
[319452115,1710780642972,-238.75255603,0.00019998,2]
[319452116,1710780642985,-280.79703052,0.00019998,2]
[319452117,1710780642995,-17295.11203777,0.00019998,2]
[319452118,1710780643005,-2050.65098397,0.00019998,2]
[319452119,1710780643017,-381.8787319,0.00019998,2]
[319452120,1710780643030,-806.41845803,0.00019998,2]
[319452121,1710780643040,-212.20893555,0.00019998,2]
[319452122,1710780643051,-365.48939809,0.00019998,2]
[319452123,1710780643062,-309.97985696,0.00019998,2]
[319452124,1710780643073,-155.01085076,0.00019998,2]
[319452125,1710780643083,-170.99144379,0.00019998,2]
[319452126,1710780643093,-318.44252121,0.00019998,2]
[319452127,1710780643104,-290.7262717,0.00019998,2]
[319452128,1710780643115,-179.83699487,0.00019998,2]
[319452129,1710780643126,-705.62350907,0.00019998,2]
[319452130,1710780643138,-1424.13555578,0.00019998,2]
[319452131,1710780643148,-158.38910066,0.00019998,2]
[319452132,1710780643157,-985.97481024,0.00019998,2]
[319452133,1710780643168,-192.12704116,0.00019998,2]
[319452134,1710780643178,-301.48092725,0.00019998,2]
[319452135,1710780643188,-245.36796791,0.00019998,2]
[319452136,1710780643198,-289.37706784,0.00019998,2]
[319452137,1710780643208,-337.68947346,0.00019998,2]
[319452138,1710780643218,-2232.48655849,0.00019998,2]
[319452139,1710780643227,-276.88506556,0.00019998,2]
[319452140,1710780643241,-201.12071688,0.00019998,2]
[319452141,1710780643250,-500.0,0.00019998,2]
[319452142,1710780643259,-500.0,0.00019998,2]
[319452143,1710780643269,-476.28389301,0.00019998,2]
[319452144,1710780643280,-500.0,0.00019998,2]
[319452145,1710780643290,-500.0,0.00019998,2]
[319452146,1710780643300,-500.0,0.00019998,2]
[319452147,1710780643311,-500.0,0.00019998,2]
[319452148,1710780643320,-500.0,0.00019998,2]
[319452149,1710780643330,-500.0,0.00019998,2]
[319452150,1710780643340,-417.76026271,0.00019998,2]
[319452151,1710780643349,-500.0,0.00019998,2]
[319452152,1710780643358,-500.0,0.00019998,2]
[319452153,1710780643367,-500.0,0.00019998,2]
[319452154,1710780643377,-500.0,0.00019998,2]
[319452155,1710780643386,-500.0,0.00019998,2]
[319452156,1710780643395,-500.0,0.00019998,2]
[319452157,1710780643405,-500.0,0.00019998,2]
[319452158,1710780643414,-500.0,0.00019998,2]
[319452159,1710780643424,-500.0,0.00019998,2]
[319452160,1710780643433,-500.0,0.00019998,2]
[319452161,1710780643442,-500.0,0.00019998,2]
[319452162,1710780643452,-500.0,0.00019998,2]
[319452163,1710780643462,-151.0,0.00019998,2]
[319452164,1710780643471,-500.0,0.00019998,2]
[319452165,1710780643480,-500.0,0.00019998,2]
[319452166,1710780643491,-1449.88,0.00019998,2]
[319452167,1710780643500,-1449.88,0.00019998,2]
[319452168,1710780643509,-500.0,0.00019999,2]
[319452169,1710780643518,-500.0,0.00019999,2]
[319452170,1710780643528,-500.0,0.00019999,2]
[319452171,1710780643537,-500.0,0.00019999,2]
[319452172,1710780643547,-500.0,0.00019999,2]
[319452173,1710780643556,-500.0,0.00019999,2]
[319452174,1710780643565,-500.0,0.00019999,2]
[319452175,1710780643574,-500.0,0.00019999,2]
[319452176,1710780643582,-500.0,0.00019999,2]
[319452177,1710780643592,-500.0,0.00019999,2]
[319452178,1710780643601,-500.0,0.00019999,2]
[319452179,1710780643610,-522.67451307,0.00019999,2]
[319452180,1710780643619,-500.0,0.00019999,2]
[319452181,1710780643629,-500.0,0.00019999,2]
[319452182,1710780643638,-500.0,0.00019999,2]
[319452183,1710780643647,-500.0,0.00019999,2]
[319452184,1710780643656,-500.0,0.00019999,2]
[319452185,1710780643665,-500.0,0.00019999,2]
[319452186,1710780643675,-500.0,0.00019999,2]
[319452187,1710780643684,-500.0,0.00019999,2]
[319452188,1710780643693,-500.0,0.00019999,2]
[319452189,1710780643702,-500.0,0.00019999,2]
[319452190,1710780643712,-500.0,0.00019999,2]
[319452191,1710780643721,-500.0,0.00019999,2]
[319452192,1710780643730,-500.0,0.00019999,2]
[319452193,1710780643743,-500.0,0.00019999,2]
[319452194,1710780643753,-500.0,0.00019999,2]
[319452195,1710780643762,-500.0,0.00019999,2]
[319452196,1710780643771,-500.0,0.00019999,2]
[319452197,1710780643780,-500.0,0.00019999,2]
[319452198,1710780643789,-500.0,0.00019999,2]
[319452199,1710780643799,-500.0,0.00019999,2]
[319452200,1710780643808,-500.0,0.00019999,2]
[319452201,1710780643818,-434.81003643,0.00019999,2]
[319452202,1710780643827,-297.56,0.00019999,2]
[319452203,1710780643836,-500.0,0.00019999,2]
[319452204,1710780643845,-211.36720899,0.00019999,2]
[319452205,1710780643855,-500.0,0.00019999,2]
[319452206,1710780643864,-500.0,0.00019999,2]
[319452207,1710780643873,-500.0,0.00019999,2]
[319452208,1710780643882,-500.0,0.00019999,2]
[319452209,1710780643893,-500.0,0.00019999,2]
[319452210,1710780643902,-500.0,0.00019999,2]
[319452211,1710780643911,-500.0,0.00019999,2]
[319452212,1710780643920,-500.0,0.00019999,2]
[319452213,1710780643930,-500.0,0.00019999,2]
[319452214,1710780643939,-500.0,0.00019999,2]
[319452215,1710780643948,-500.0,0.00019999,2]
[319452216,1710780643959,-500.0,0.00019999,2]
[319452217,1710780643968,-500.0,0.00019999,2]
[319452218,1710780643977,-500.0,0.00019999,2]
[319452219,1710780643989,-500.0,0.00019999,2]
[319452220,1710780643998,-500.0,0.00019999,2]
[319452221,1710780644008,-500.0,0.00019999,2]
[319452222,1710780644017,-500.0,0.00019999,2]
[319452223,1710780644026,-500.0,0.00019999,2]
[319452224,1710780644036,-500.0,0.00019999,2]
[319452225,1710780644045,-645.11263478,0.00019999,2]
[319452226,1710780644054,-500.0,0.00019999,2]
[319452227,1710780644063,-500.0,0.00019999,2]
[319452228,1710780644081,-500.0,0.00019999,2]
[319452229,1710780644095,-500.0,0.00019999,2]
[319452230,1710780644106,-500.0,0.00019999,2]
[319452231,1710780644118,-249.19182728,0.00019999,2]
[319452232,1710780644128,-420.37842613,0.00019999,2]
[319452233,1710780644139,-442.15285313,0.00019999,2]
[319452234,1710780644148,-1449.88,0.00019999,2]
[319452235,1710780644157,-1449.88,0.00019999,2]
[319452236,1710780644167,-1449.88,0.00019999,2]
[319452237,1710780644176,-1449.88,0.00019999,2]
[319452238,1710780644186,-1449.88,0.00019999,2]
[319452239,1710780644195,-1449.88,0.00019999,2]
[319452240,1710780644205,-1449.88,0.00019999,2]
[319452241,1710780644215,-1449.88,0.00019999,2]
[319452242,1710780644224,-1449.88,0.00019999,2]
[319452243,1710780644235,-1449.88,0.00019999,2]
[319452244,1710780644244,-1449.88,0.00019999,2]
[319452245,1710780644253,-1449.88,0.00019999,2]
[319452246,1710780644263,-1449.88,0.00019999,2]
[319452247,1710780644273,-1449.88,0.00019999,2]
[319452248,1710780644283,-1449.88,0.00019999,2]
[319452249,1710780644292,-1449.88,0.00019999,2]
[319452250,1710780644302,-1449.88,0.00019999,2]
[319452251,1710780644312,-1449.88,0.00019999,2]
[319452252,1710780644321,-1449.88,0.00019999,2]
[319452253,1710780644331,-1449.88,0.00019999,2]
[319452254,1710780644340,-1449.88,0.00019999,2]
[319452255,1710780644349,-1449.96480143,0.00019999,2]
[319452256,1710780644359,-424520.29802694,0.0002,5]
[319452257,1710780644368,-154.98450155,0.0002,2]
[319452258,1710780644377,-154.98450155,0.0002,2]
[319452259,1710780644386,-154.98450155,0.0002,2]
[319452260,1710780644396,-1310.97594215,0.0002,2]
[319452261,1710780644406,-239.09546587,0.0002,2]
[319452262,1710780644415,-400.0,0.0002,2]
[319452263,1710780644424,-177.12757797,0.0002,2]
[319452264,1710780644434,-1241748.73,0.0002,5]
[319452265,1710780644443,-21213.98,0.0002,5]
[319452266,1710780644453,-1569.42932561,0.0002,2]
[319452267,1710780644463,-582.0,0.0002,2]
[319452268,1710780644472,-1162.0758,0.0002,2]
[319452269,1710780644481,-1162.0758,0.0002,2]
[319452270,1710780644493,-151.51666668,0.0002,2]
[319452271,1710780644502,-660.15334338,0.0002,2]
[319452272,1710780644511,-1015.0,0.0002,2]
[319452273,1710780644520,-588.929828,0.00020166,2]
[319452274,1710780644529,-705.135295,0.00020166,2]
[319452275,1710780644538,-478.11169,0.00020166,2]
[319452276,1710780644547,-465.299678,0.00020166,2]
[319452277,1710780644557,-6093.22402693,0.00020172,5]
[319452278,1710780644567,-6093.22402693,0.00020172,5]
[319452279,1710780644575,-6093.22402693,0.00020172,5]
[319452280,1710780644585,-6093.22402693,0.00020172,5]
[319452281,1710780644594,-6093.22402693,0.00020172,5]
[319452282,1710780644603,-6093.22402693,0.00020172,5]
[319452283,1710780644613,-6093.22402693,0.00020172,5]
[319452284,1710780644623,-6093.22402693,0.00020172,5]
[319452285,1710780644632,-6093.22402693,0.00020172,5]
[319452286,1710780644642,-6093.22302693,0.00020172,5]
[319452287,1710780644651,-9632.69768324,0.00020172,5]
[319452288,1710780644660,-588.929828,0.00020409,2]
[319452289,1710780644669,-705.135295,0.00020409,2]
[319452290,1710780644678,-155.0,0.00020548,2]
[319452291,1710780644687,-43226.59723583,0.00020855,3]
[319452292,1710780644697,-250.0,0.00020999,21]
[319452293,1710780644706,-31279.8,0.00021,10]
[319452294,1710780644715,-234.70353854,0.00021,2]
[319452295,1710780644724,-9931.33469683,0.00021,2]
[319452296,1710780644735,-195.70931,0.00021,2]
[319452297,1710780644745,-3126.19815599,0.00021,7]
[319452298,1710780644755,-15397.79295984,0.00021,2]
[319452299,1710780644764,-2204.57044006,0.00021,2]
[319452300,1710780644774,-2486.64603957,0.00021,2]
[319452301,1710780644783,-30000.0,0.00021,2]
[319452302,1710780644793,-864886.45359794,0.00021158,60]
[319452303,1710780644803,-1996987.84061274,0.00021158,60]
[319452459,1710781838238,-685.06399665,0.00018469,2]
[319452461,1710781838247,-155.04961588,0.0001847,2]
[319452463,1710781838257,-200.365269,0.00019426,2]
[319452465,1710781838266,-26254.80258877,0.000199,2]
[319452467,1710781838275,-500.0,0.00019998,2]
[319452468,1710781838284,-508.16421302,0.00019998,2]
[319452470,1710781838293,-500.0,0.00019998,2]
[319452472,1710781838302,-500.0,0.00019998,2]
[319452474,1710781838312,-500.0,0.00019998,2]
[319452475,1710781838321,-205.65403758,0.0002,2]
[319452476,1710781838332,-239.09546587,0.00020545,2]
[319452477,1710781838348,-154.98450155,0.00020546,2]
[319452478,1710781838359,-683.01846586,0.00020547,2]
[319452479,1710781838368,-155.0,0.00020548,2]
[319452480,1710781838378,-154.98450155,0.00020703,2]
[319452482,1710781838387,-367.32614959,0.00020732,2]
[319452483,1710781838397,-563.59021746,0.00020997,2]
[319452485,1710781838406,-29583.82250764,0.00021,5]
[319452487,1710781838418,-24828.6690206,0.00021,5]
[319452489,1710781838430,-18042.15964176,0.00021,5]
[319452490,1710781838443,-30730.99984,0.00021,5]
[319452492,1710781838454,-3796.33882636,0.00021,5]
[319452493,1710781838466,-496.65374834,0.00021,5]
[319452495,1710781838477,-1182.72839493,0.00021,5]
[319452497,1710781838488,-744.42028,0.00021,5]
[319452499,1710781838499,-7037.238242,0.00021,5]
[319452673,1710781840155,-468.69147801,0.00021,5]
[319452675,1710781840167,-665.0,0.00021,5]
[319453083,1710781843281,-22572.70294587,0.00021,5]
[319453339,1710781845700,-8164.99999395,0.00021,5]
[319453361,1710781845783,-5000.0,0.00021,5]
[319453367,1710781845795,-282.0,0.00021,5]
[319455752,1710782768299,-1290.41377362,0.00017877,2]
[319455753,1710782768351,-26.33497497,0.00017877,2]
[319455770,1710782929820,1960.7724306,0.00025,120]
[319455813,1710783032332,-301.8450875,0.00018029,2]
[319455814,1710783032342,-493.29852979,0.00018029,2]
[319455815,1710783032352,-336.78954129,0.0001803,2]
[319455816,1710783032362,-2216.56684142,0.0001803,2]
[319455935,1710783043314,-690.21048248,0.00018028,2]
[319455936,1710783043326,-268.24199987,0.00018028,2]
[319455937,1710783043371,-2544.42531713,0.00018028,2]
[319455938,1710783043381,-806.9943883,0.00018028,2]
[319455939,1710783043390,-1570.36204748,0.00018029,2]
[319455940,1710783043400,-154.98450155,0.00018029,2]
[319455941,1710783043409,-179.93362187,0.00018029,2]
[319455942,1710783043418,-932.2306034,0.0001803,2]
[319455943,1710783043428,-212.30040266,0.00018031,2]
[319455944,1710783043437,-1639.59189494,0.00018031,2]
[319455945,1710783043449,-961.48952691,0.00018031,2]
[319455946,1710783043458,-187.50817841,0.00018032,2]
[319455947,1710783043468,-685.06399665,0.00018032,2]
[319455948,1710783043478,-204.95556667,0.00018032,2]
[319455949,1710783043489,-1476.18794127,0.00018032,2]
[319455950,1710783043499,-9774.24367819,0.0001827,2]
[319455951,1710783043509,-2502.33636239,0.00018899,2]
[319455952,1710783043518,-150.0,0.000189,2]
[319455953,1710783043528,-293.215294,0.00019178,2]
[319455954,1710783043538,-166.666666,0.00019178,2]
[319455955,1710783043548,-441.086904,0.00019426,2]
[319455956,1710783043558,-488.566213,0.00019426,2]
[319455957,1710783043567,-441.086904,0.00019669,2]
[319455958,1710783043576,-488.566213,0.00019669,2]
[319455959,1710783043585,-4453.86548778,0.0001989,2]
[319455960,1710783043597,-1189.73765153,0.0001989,2]
[319455961,1710783043608,-2310.224652,0.0001989,2]
[319455962,1710783043618,-229.38351683,0.000199,2]
[319455963,1710783043627,-714.87,0.00019911,2]
[319455964,1710783043637,-441.086904,0.00019912,2]
[319455965,1710783043647,-488.566213,0.00019912,2]
[319455966,1710783043657,-166.666666,0.00019926,2]
[319455967,1710783043667,-500.0,0.00019998,2]
[319455968,1710783043677,-500.0,0.00019998,2]
[319455969,1710783043688,-365.03551066,0.00019998,2]
[319455970,1710783043699,-500.0,0.00019999,2]
[319455971,1710783043712,-500.0,0.00019999,2]
[319455972,1710783043727,-500.0,0.00019999,2]
[319455973,1710783043739,-593.30394245,0.00019999,2]
[319455974,1710783043755,-660.15334338,0.0002,2]
[319455975,1710783043766,-1015.0,0.0002,2]
[319455976,1710783043776,-528.34035835,0.0002,2]
[319455977,1710783043786,-239.09546587,0.0002,2]
[319455978,1710783043797,-154.98450155,0.00020135,2]
[319455979,1710783043807,-154.98450155,0.00020136,2]
[319455980,1710783043817,-400.0,0.00020136,2]
[319455981,1710783043826,-1310.97594215,0.00020136,2]
[319455982,1710783043836,-154.98450155,0.00020136,2]
[319455983,1710783043847,-154.98450155,0.00020137,2]
[319455984,1710783043857,-441.086904,0.00020154,2]
[319455985,1710783043867,-488.566213,0.00020154,2]
[319455986,1710783043877,-441.086904,0.00020397,2]
[319455987,1710783043888,-488.566213,0.00020397,2]
[319455988,1710783043898,-151.50000152,0.00020539,2]
[319455989,1710783043908,-155.0,0.00020548,2]
[319455990,1710783043917,-582.0,0.000206,2]
[319455991,1710783043927,-166.666666,0.00020674,2]
[319455992,1710783043936,-155.10081553,0.00020703,2]
[319455993,1710783043945,-1042.74340735,0.00020703,2]
[319455994,1710783043955,-500.0,0.00020898,2]
[319455995,1710783043963,-500.0,0.00020898,2]
[319455996,1710783043973,-506.04,0.00020898,2]
[319455997,1710783043982,-506.04,0.00020898,2]
[319455998,1710783043999,-500.0,0.00020898,2]
[319455999,1710783044008,-500.0,0.00020898,2]
[319456000,1710783044018,-500.0,0.00020898,2]
[319456001,1710783044027,-594.17817039,0.00020898,2]
[319456002,1710783044036,-500.0,0.00020898,2]
[319456003,1710783044046,-500.0,0.00020898,2]
[319456004,1710783044055,-500.0,0.00020898,2]
[319456005,1710783044064,-500.0,0.00020898,2]
[319456006,1710783044073,-164.79336561,0.00020898,2]
[319456007,1710783044083,-500.0,0.00020898,2]
[319456008,1710783044092,-336.76639542,0.00020898,2]
[319456009,1710783044101,-1000.0,0.00020899,2]
[319456010,1710783044111,-500.0,0.00020899,2]
[319456011,1710783044121,-500.0,0.00020899,2]
[319456012,1710783044130,-500.0,0.00020899,2]
[319456013,1710783044140,-500.0,0.00020899,2]
[319456014,1710783044149,-379.55728125,0.00020899,2]
[319456015,1710783044158,-207.84440496,0.00020899,2]
[319456016,1710783044167,-500.0,0.00020899,2]
[319456017,1710783044262,-500.0,0.00020899,2]
[319456018,1710783044274,-500.0,0.00020899,2]
[319456019,1710783044283,-151.0,0.00020899,2]
[319456020,1710783044292,-151.0,0.00020899,2]
[319456021,1710783044302,-151.0,0.00020899,2]
[319456022,1710783044311,-500.0,0.00020899,2]
[319456023,1710783044320,-500.0,0.00020899,2]
[319456024,1710783044334,-500.0,0.00020899,2]
[319456025,1710783044343,-500.0,0.00020899,2]
[319456026,1710783044352,-500.0,0.00020899,2]
[319456027,1710783044362,-500.0,0.00020899,2]
[319456028,1710783044371,-500.0,0.00020899,2]
[319456029,1710783044380,-1493.15,0.00020899,2]
[319456030,1710783044389,-1493.15,0.00020899,2]
[319456031,1710783044398,-1493.15,0.00020899,2]
[319456032,1710783044407,-500.0,0.00020899,2]
[319456033,1710783044417,-598.20793385,0.00020899,2]
[319456034,1710783044426,-714.87,0.00020899,2]
[319456035,1710783044435,-714.87,0.00020899,2]
[319456036,1710783044445,-714.87,0.00020899,2]
[319456037,1710783044455,-500.0,0.00020899,2]
[319456038,1710783044464,-417.76026271,0.00020899,2]
[319456039,1710783044474,-500.0,0.00020899,2]
[319456040,1710783044483,-500.0,0.00020899,2]
[319456041,1710783044495,-500.0,0.00020899,2]
[319456042,1710783044505,-500.0,0.00020899,2]
[319456043,1710783044514,-500.0,0.00020899,2]
[319456044,1710783044524,-297.56,0.00020899,2]
[319456045,1710783044533,-500.0,0.00020899,2]
[319456046,1710783044542,-500.0,0.00020899,2]
[319456047,1710783044552,-500.0,0.00020899,2]
[319456048,1710783044561,-501.11761868,0.00020899,2]
[319456049,1710783044571,-500.0,0.00020899,2]
[319456050,1710783044580,-500.0,0.00020899,2]
[319456051,1710783044589,-500.0,0.00020899,2]
[319456052,1710783044600,-500.0,0.00020899,2]
[319456053,1710783044609,-500.0,0.00020899,2]
[319456054,1710783044618,-500.0,0.00020899,2]
[319456055,1710783044627,-772.19,0.00020899,2]
[319456056,1710783044636,-772.19,0.00020899,2]
[319456057,1710783044646,-772.19,0.00020899,2]
[319456058,1710783044656,-772.19,0.00020899,2]
[319456059,1710783044665,-506.04,0.00020899,2]
[319456060,1710783044674,-506.04,0.00020899,2]
[319456061,1710783044683,-500.0,0.00020899,2]
[319456062,1710783044692,-500.0,0.00020899,2]
[319456063,1710783044706,-500.0,0.00020899,2]
[319456064,1710783044715,-442.15285313,0.00020899,2]
[319456065,1710783044725,-1491.55,0.00020899,2]
[319456066,1710783044734,-1491.55,0.00020899,2]
[319456067,1710783044747,-1491.55,0.00020899,2]
[319456068,1710783044756,-538.87035353,0.00020899,2]
[319456069,1710783044765,-1491.55,0.00020899,2]
[319456070,1710783044774,-530.19820949,0.00020899,2]
[319456071,1710783044783,-500.0,0.00020899,2]
[319456072,1710783044794,-500.0,0.00020899,2]
[319456073,1710783044803,-500.0,0.00020899,2]
[319456074,1710783044812,-500.0,0.00020899,2]
[319456075,1710783044822,-500.0,0.00020899,2]
[319456076,1710783044832,-500.0,0.00020899,2]
[319456077,1710783044843,-500.0,0.00020899,2]
[319456078,1710783044854,-153.05616986,0.00020899,2]
[319456079,1710783044864,-500.0,0.00020899,2]
[319456080,1710783044873,-533.79862013,0.00020899,2]
[319456081,1710783044882,-100215.80396658,0.000209,2]
[319456082,1710783044891,-506.04,0.00020996,2]
[319456083,1710783044900,-500.0,0.00020997,2]
[319456084,1710783044911,-1493.15,0.00020997,2]
[319456085,1710783044920,-500.0,0.00020997,2]
[319456086,1710783044929,-500.0,0.00020997,2]
[319456087,1710783044940,-500.0,0.00020997,2]
[319456088,1710783044949,-170.99144379,0.00020998,2]
[319456089,1710783044958,-301.48092725,0.00020998,2]
[319456090,1710783044967,-215.2932749,0.00020998,2]
[319456091,1710783044977,-155.0341075,0.00020998,2]
[319456092,1710783044986,-238.75255603,0.00020998,2]
[319456093,1710783044997,-280.79703052,0.00020998,2]
[319456094,1710783045006,-276.88506556,0.00020998,2]
[319456095,1710783045015,-365.48939809,0.00020998,2]
[319456096,1710783045023,-155.01085076,0.00020998,2]
[319456097,1710783045033,-158.38910066,0.00020998,2]
[319456098,1710783045041,-985.97481024,0.00020998,2]
[319456099,1710783045051,-155.41209129,0.00020998,2]
[319456100,1710783045060,-337.68947346,0.00020998,2]
[319456101,1710783045069,-236.41458362,0.00020998,2]
[319456102,1710783045078,-309.9380155,0.00020998,2]
[319456103,1710783045088,-429.64123209,0.00020998,2]
[319456104,1710783045097,-483.92803925,0.00020998,2]
[319456105,1710783045106,-151.0,0.00020998,2]
[319456106,1710783045115,-500.0,0.00020998,2]
[319456107,1710783045124,-1493.15,0.00020998,2]
[319456108,1710783045133,-1493.15,0.00020998,2]
[319456109,1710783045143,-524.9782633,0.00020998,2]
[319456110,1710783045152,-262.57477922,0.00020998,7]
[319456111,1710783045161,-714.87,0.00020998,2]
[319456112,1710783045170,-714.87,0.00020998,2]
[319456113,1710783045179,-714.87,0.00020998,2]
[319456114,1710783045188,-211.36720899,0.00020998,2]
[319456115,1710783045197,-500.0,0.00020998,2]
[319456116,1710783045207,-408.33370903,0.00020998,2]
[319456117,1710783045216,-475.15842613,0.00020998,2]
[319456118,1710783045225,-772.19,0.00020998,2]
[319456119,1710783045234,-772.19,0.00020998,2]
[319456120,1710783045246,-772.19,0.00020998,2]
[319456121,1710783045255,-156.11682561,0.00020998,2]
[319456122,1710783045264,-506.04,0.00020998,2]
[319456123,1710783045273,-506.04,0.00020998,2]
[319456124,1710783045282,-506.04,0.00020998,2]
[319456125,1710783045291,-1491.55,0.00020998,2]
[319456126,1710783045300,-1491.55,0.00020998,2]
[319456127,1710783045309,-1491.55,0.00020998,2]
[319456128,1710783045318,-18276.71176293,0.00020999,2]
[319456129,1710783045328,-500.0,0.00020999,2]
[319456130,1710783045337,-427.25685879,0.00020999,2]
[319456131,1710783045346,-518.16093106,0.00020999,2]
[319456132,1710783045355,-500.0,0.00020999,2]
[319456133,1710783045364,-500.0,0.00020999,2]
[319456134,1710783045373,-500.0,0.00020999,2]
[319456135,1710783045382,-500.0,0.00020999,2]